Cogmind - Beta 17 @@@ ROGUE MODE // 2026.06.23 @ 17:44:13 Player: JaideBun Result: Destroyed by G-34 Mercenary with Small Laser Performance ------------- Evolutions (1) 500 Regions Visited (2) 400 Robots Destroyed (10) 50 Value Destroyed (316) 316 Prototype IDs (0) 0 Alien Tech Used (0) 0 Bonus (0) 0 TOTAL SCORE: 1266 Bonus ------- None Cogmind --------- Core Integrity 0/400 Matter 500/500 Energy 100/100 System Corruption 7% Temperature Cool (6) Movement Core (400) Ox7 Location -9/Materials Parts ------- > --- POWER (1) -------- (None) > --- PROPULSION (3) --- (None) > --- UTILITY (3) ------ Large Storage Unit High-capacity Matter Pod > --- WEAPON (2) ------- (None) > --- INVENTORY (15) --- Light Ion Engine Improved Heat Sink Peak State ------------ > --- POWER ------------ Improved Ion Engine > --- PROPULSION ------- Light Treads Light Treads Aluminum Leg > --- UTILITY ---------- Large Storage Unit High-capacity Matter Pod Light Armor Plating > --- WEAPON ----------- Salvaging Laser Beam Rifle > --- INVENTORY -------- Light Ion Engine Light Ion Engine Improved Heat Sink [Rating: 11] Favorites ----------- Power Ion Engine Engine Ion Engine Propulsion Aluminum Leg Treads Light Treads Leg Aluminum Leg Utility High-capacity Matter Pod Storage High-capacity Matter Pod Processor Visual Processing Unit Protection Light Armor Plating Weapon Salvaging Laser Energy Gun Salvaging Laser Ballistic Gun Assault Rifle Build | -11 -10 -9 ------- Run | Yrd Mat Mat Slots Evolved 2 | . . 2 Power . | . . . Propulsion 1 | . . 1 Utility 1 | . . 1 Weapon . | . . . Parts Attached 22 | 6 9 7 Power 4 | 1 1 2 Engine 4 | 1 1 2 Core . | . . . Reactor . | . . . Propulsion 7 | 2 3 2 Treads 2 | . . 2 Leg 5 | 2 3 . Wheel . | . . . Hover . | . . . Flight . | . . . Utility 5 | 1 2 2 Device . | . . . Storage 3 | 1 2 . Processor 1 | . . 1 Hackware . | . . . Protection 1 | . . 1 Artifact . | . . . Weapon 6 | 2 3 1 Energy Gun 3 | . 2 1 Energy Cannon . | . . . Ballistic Gun 3 | 2 1 . Ballistic Cannon . | . . . Launcher . | . . . Special Weapon . | . . . Impact Weapon . | . . . Slashing Weapon . | . . . Piercing Weapon . | . . . Special Melee Weapon . | . . . Unidentified Prototypes . | . . . Parts Lost 12 | . . 12 Power 2 | . . 2 Propulsion 4 | . . 4 Utility 2 | . . 2 Weapon 4 | . . 4 Highest Loss Streak 7 | . . 7 To Critical Strikes . | . . . Average Backups 2 | . 2 3 Power 1 | . . 1 Propulsion . | . . . Utility 1 | . 2 1 Weapon . | . . . Tool/Special . | . . . Unused Backups 2 | . 1 1 Power . | . . . Propulsion . | . . . Utility 2 | . 1 1 Weapon . | . . . Tool/Special . | . . . Average Slot Usage (%) 84 | . 90 74 Engine 9 | . 11 6 Treads 2 | . . 7 Leg 19 | . 23 13 Storage 25 | . 27 22 Processor 1 | . . 4 Protection 1 | . . 3 Energy Gun 14 | . 15 12 Ballistic Gun 8 | . 11 4 Peak Build Rating 11 | 6 7 11 Average Rating 6 | 4 6 7 On Entrance 4 | . 6 7 Avg Prop Armor Cover (%) 5 | . . 5 Naked Turns . | . . . Heaviest Build 38 | 12 31 38 Greatest Support 40 | 20 20 40 Greatest Overweight (x) 8 | . 4 8 Average Overweight (x) . | . . . Largest Inventory Capacity 15 | 8 15 15 Average Capacity 11 | 7 9 15 Most Carried 5 | 2 5 4 Average Carried 2 | . 3 3 Final Capacity 15 | 8 15 15 Final Carried 5 | . 5 2 Class Distribution -------------------- 68% | Mutant 31% | Scavenger-Mutant Dominant Class ---------------- Mutant | -10/Materials Scavenger-Mutant | -9/Materials Resources | -11 -10 -9 ----------- Run | Yrd Mat Mat Matter Collected 621 | 204 263 154 Remotely . | . . . Salvage Created 419 | . 154 265 Parts 22 | . 12 10 Haulers Intercepted . | . . . Recyclers Shooed . | . . . Parts Field Recycled . | . . . Retrieved Matter . | . . . Parts Self-Destructed . | . . . Prevented . | . . . Parts Restored . | . . . Kills | -11 -10 -9 ------- Run | Yrd Mat Mat Combat Hostiles Destroyed 10 | . 5 5 Guns 9 | . 5 4 Classes Destroyed 4 | . 2 2 Swarmer 2 | . 2 . Grunt 5 | . 3 2 Brawler 1 | . . 1 Sentry 2 | . . 2 Best Kill Streak 2 | . 2 2 Combat Bots Only 2 | . 2 2 Max Kills in Single Turn 2 | . 2 1 Gunslinging 1 | . 1 . Exploded . | . . . Melee . | . . . Uniques/NPCs Destroyed . | . . . Combat | -11 -10 -9 -------- Run | Yrd Mat Mat Hostile Shots Fired 151 | . 19 132 Missed 38 | . 5 33 Hits 113 | . 14 99 Melee 4 | . . 4 Projectile 109 | . 14 95 Critical Strikes 1 | . . 1 Damage Taken 1363 | . 127 1236 Core 448 | . 43 405 Absorbed by Shields . | . . . Regen/Repaired (Parts) 18 | . . 18 Core Remaining (%) 91 | 100 82 . Volleys Fired 51 | . 11 40 Largest 2 | . 2 2 Hottest 86 | . 60 86 Shots Fired 75 | . 22 53 Gun 75 | . 22 53 Cannon . | . . . Launcher . | . . . Special . | . . . Kinetic 17 | . 8 9 Thermal 58 | . 14 44 Explosive . | . . . Electromagnetic . | . . . Robot Hit Streak 20 | . 8 20 Robot Miss Streak 3 | . 3 3 Penetration Max . | . . . Secondary Targets 4 | . 2 2 Max Gunslinging Chain 1 | . 1 1 Shots Hit Robots 60 | . 15 45 Core Hits 20 | . 7 13 Critical Kills . | . . . Critical Parts Destroyed . | . . . Critical Strikes 1 | . . 1 Burn 1 | . . 1 Melee Attacks . | . . . Impact . | . . . Slashing . | . . . Piercing . | . . . Sneak Attacks . | . . . Combat Hostiles . | . . . Follow-up Attacks . | . . . Damage Inflicted 632 | . 146 486 Guns 629 | . 146 483 Cannons . | . . . Explosions . | . . . Melee . | . . . Ramming 3 | . . 3 Kinetic 82 | . 37 45 Thermal 547 | . 109 438 Explosive . | . . . Electromagnetic . | . . . Impact . | . . . Slashing . | . . . Piercing . | . . . Highest Corruption 7 | . . 7 Average Corruption 6 | . . 6 Corruption Purged . | . . . Corruption Blocked . | . . . Overload Shots . | . . . Overflow Damage . | . . . Projectiles . | . . . Explosions . | . . . Melee . | . . . Knockbacks . | . . . Impact . | . . . Kinetic . | . . . Secondary . | . . . Self-Inflicted Damage . | . . . Shots . | . . . Rammed 7 | . . 7 Targets Rammed 7 | . . 7 Kicked . | . . . Crushed . | . . . Highest Temperature 281 | . 124 281 Average Temperature 103 | . 52 117 Received Heat Transfer 555 | . 42 513 Effects 2 | . . 2 Interference 2 | . . 2 Siege Activations . | . . . Martial Activations . | . . . Shielding Activations . | . . . Robots Disrupted . | . . . Combat Hostiles . | . . . Robots Corrupted . | . . . Combat Hostiles . | . . . Parts Fried . | . . . Impact Corruptions . | . . . Robots Melted 1 | . . 1 Combat Hostiles 1 | . . 1 Parts Melted 6 | . 1 5 Heat Transferred 1555 | . 300 1255 Parts Sabotaged . | . . . Parts Stolen . | . . . Parts Stripped . | . . . Power Chain Reactions . | . . . Alert | -11 -10 -9 ------- Run | Yrd Mat Mat Maximum Alert Level . | . . . Low Security (%) 100 | 100 100 100 Level 1 . | . . . Level 2 . | . . . Level 3 . | . . . Level 4 . | . . . Level 5 . | . . . High Security . | . . . Max Security . | . . . Peak Influence 50 | . 50 40 Initial 14 | . . 14 Average 10 | . 10 12 Influence Increases 342 | . 150 192 Destroy 0b10 Robot/C 200 | . 100 100 Destroy Leader 60 | . 30 30 Successful Hack 7 | . 5 2 Lose Combat Pursuer 75 | . 15 60 Influence Decreases 342 | . 116 226 Entered New Map 20 | . . 20 Time Decay 210 | . 81 129 Lost Part 77 | . . 77 Purge Threat 35 | . 35 . Squads Dispatched 3 | . 2 1 Investigation . | . . . Extermination . | . . . Reinforcement 3 | . 2 1 Assault . | . . . Garrison . | . . . Intercept . | . . . Searches Triggered . | . . . Construction Impeded . | . . . Haulers Reinforced . | . . . Active Scanning Responses . | . . . Cargo Convoy Interrupts . | . . . Stealth | -11 -10 -9 --------- Run | Yrd Mat Mat Distress Signals 3 | . 1 2 Communications Jammed . | . . . Distress Signals . | . . . Times Spotted 21 | . 11 10 Peak Tracking Total 5 | . 2 5 Tactical Retreats 5 | . 1 4 Traps | -11 -10 -9 ------- Run | Yrd Mat Mat Traps Triggered 3 | . 3 . Indirectly . | . . . Trap Hack Attempts . | . . . Triggered . | . . . Disarmed . | . . . Reprogrammed . | . . . Reused . | . . . Traps Extracted . | . . . Installed . | . . . Triggered . | . . . Machines | -11 -10 -9 ---------- Run | Yrd Mat Mat Machines Disabled . | . . . Max in Single Turn . | . . . Machines Repaired . | . . . Machines Dismantled . | . . . Machines Sabotaged . | . . . Overloaded Fab Kills . | . . . Hacking | -11 -10 -9 --------- Run | Yrd Mat Mat Machines Accessed 4 | . 3 1 Terminals 3 | . 3 . Fabricators . | . . . Repair Stations 1 | . . 1 Recycling Units . | . . . Scanalyzers . | . . . Garrison Access . | . . . Total Hacks 14 | . 12 2 Successful 6 | . 4 2 Failed 8 | . 8 . Catastrophic . | . . . Database Lockouts . | . . . Manual . | . . . Terminals 12 | . 12 . Fabricators . | . . . Repair Stations 2 | . . 2 Recycling Units . | . . . Scanalyzers . | . . . Garrison Access . | . . . Terminal Hacks 4 | . 4 . Emergency Access Points 1 | . 1 . Terminal Index 1 | . 1 . Unreport Threat 1 | . 1 . Investigation Status 1 | . 1 . Fabricator Hacks . | . . . Repair Station Hacks 2 | . . 2 Scan Component 1 | . . 1 Repair 1 | . . 1 Recycling Unit Hacks . | . . . Scanalyzer . | . . . Garrison Access Hacks . | . . . Unauthorized Hacks . | . . . Terminals . | . . . Fabricators . | . . . Repair Stations . | . . . Recycling Units . | . . . Scanalyzers . | . . . Garrison Access . | . . . Data Cores Recovered . | . . . Used . | . . . Hacking Detections 4 | . 3 1 Full Trace Events 1 | . 1 . Feedback Events . | . . . Feedback Blocked . | . . . Robot Schematics Acquired . | . . . Robots Built . | . . . Authchips . | . . . Time . | . . . Total Robot Build Rating . | . . . Part Schematics Acquired . | . . . Parts Built . | . . . Authchips . | . . . Time . | . . . Total Part Build Rating . | . . . Part Studies Acquired . | . . . Parts Repaired 1 | . . 1 Time 32 | . . 32 Parts Recycled . | . . . Recycled Matter . | . . . Retrieved Matter . | . . . Retrieved Components . | . . . Parts Scanalyzed . | . . . Part Schematics Acquired . | . . . Parts Damaged . | . . . Bothacking | -11 -10 -9 ------------ Run | Yrd Mat Mat Used RIF Installer . | . . . Robots Hacked . | . . . Non-combat . | . . . Combat . | . . . Robot Hacks Applied . | . . . Relay Couplers Released . | . . . Fabnet Peak Effective % . | . . . Robots Rewired . | . . . Allies Hacked . | . . . Hacks Repelled . | . . . Allies | -11 -10 -9 -------- Run | Yrd Mat Mat Total Allies . | . . . Largest Group . | . . . Highest-Rated Group . | . . . Highest-Rated Ally . | . . . Total Orders . | . . . Ally Attacks . | . . . Total Damage . | . . . Kills . | . . . Allies Corrupted . | . . . Allies Melted . | . . . Intel | -11 -10 -9 ------- Run | Yrd Mat Mat Active Infowar (turns) 133 | . . 133 Optics 133 | . . 133 Robot Analysis Total . | . . . Derelict Logs Recovered . | . . . Drone Launches . | . . . Drone Recoveries . | . . . Exploration | -11 -10 -9 ------------- Run | Yrd Mat Mat Turns Passed 876 | 42 511 323 Spaces Moved 430 | 32 292 106 Core 15 | 8 5 2 Treads 44 | . . 44 Legs 371 | 24 287 60 Wheels . | . . . Hover . | . . . Flight . | . . . Fastest Speed 50 | 50 120 160 Average Speed 158 | 102 152 190 Slowest Speed 450 | 120 250 450 Overloaded Moves . | . . . Propulsion Burnouts . | . . . Robots Hopped . | . . . Potential Cave-ins . | . . . Cave-ins Triggered . | . . . Exploration Rate (%) 18 | 3 40 13 Regions Visited 2 Branch Regions . Pre-discovered Areas . | . . . Known Exits Taken . | . . . Unknown Exits Taken 2 | 1 1 . Scrap Searched . | . . . Spaces Dug . | . . . Terrain Destroyed . | . . . Melee . | . . . Projectile . | . . . AOE . | . . . Terrain Rammed . | . . . Walls Destroyed . | . . . Machines Disabled . | . . . Actions | -11 -10 -9 --------- Run | Yrd Mat Mat Total 547 | 39 341 167 Wait 19 | . 13 6 Move 428 | 31 291 106 Hop . | . . . Pick Up 7 | 2 5 . Fast Attach 20 | 4 11 5 Attach 5 | 2 . 3 Detach 4 | . 4 . Swap 1 | . 1 . Drop 5 | . 5 . Fire 51 | . 11 40 Melee . | . . . Ram 7 | . . 7 Kick . | . . . Crush . | . . . Escape Stasis . | . . . Rewire . | . . . Trap . | . . . Miscellaneous . | . . . Route ------- -11/Scrapyard -10/Materials (discovered 2 exits: *Mat x2) -9/Materials (discovered 1 exit: [*Min]) History --------- Turn | Location | Event 6 | -11/Scrapyard | Discovered new exit (range 15) 43 | -11/Scrapyard | Entered Materials 44 | -10/Materials | Met a group of wandering Federalists 152 | -10/Materials | Discovered new exit (range 11) 317 | -10/Materials | Build established: Mutant 505 | -10/Materials | Discovered new exit (range 16) 554 | -10/Materials | Entered another Materials area 554 | -9/Materials | Evolved 2 slots: Propulsion x1, Utility x1 718 | -9/Materials | Lost 5 parts (1p1n1u2w) 780 | -9/Materials | Discovered new exit (range 9) 826 | -9/Materials | Repaired Imp. Ion Engine 847 | -9/Materials | Core integrity fell below 50% 868 | -9/Materials | Core integrity fell below 20% 877 | -9/Materials | Destroyed by G-34 Mercenary with Small Laser Last Messages --------------- Lgt. Treads destroyed. Lgt. Armor Plating destroyed. System corrupted by crushing effect (+1). B-36 Bruiser destroyed. Beam Rifle destroyed. Slammed into G-34 Mercenary. Destabilizing: Core damaged (-8). Acquired 50 matter. Lgt. Ion Engine destroyed. M-13 Machinist repairs G-34 Mercenary. Slammed into G-34 Mercenary. K-01 Serf collects debris. Slammed into G-34 Mercenary. K-01 Serf collects debris. K-01 Serf destroyed. Extracted 44 matter. Slammed into G-34 Mercenary. M-13 Machinist repairs M-13 Machinist. M-13 Machinist repairs G-34 Mercenary. Slammed into G-34 Mercenary. Map ----- +----------------------------------------------------+ | | | | | | | | | | | | | ???????????????????????????????? | | ???????????????????????????????? | | ???????????????????????????????? | | ???????????????????????????????? | | ???????????????????????????????? | | ???????????????????????????????? | | ????????#####??????????????????? | | ???????##"""##?????????????????? | | ??????##"!!!"##????????????????? | | ??????#"" ""#########????????? | | ??????# #? #????????? | | ??????# < #? #????????? | | ??????# #?? """ ?????????? | | ??????# #?? """ ?????????? | | ???????# #????"""??????????? | | ?######## #????? ?????###### | | ?# # #######+####### | | ?# %r/ | | ?#""" !g# % | | ?#"R*%%@# | | ?#""" %%######+#### ##### | | ?# g ## ## #???### ## | | ?######### ## #?????# #? | | ?????????# # #?????# #? | | ?????????# """"" ## #????# # | | ?????????# """"" # ????# | | ?????????# """"" # #???# # | | ?????????# # !#???##/## | | ?????????# # #????? ?? | | ??????????? # #????? ?? | | ?????????????"T"?## ##????? ?? | | ??????????????????# #?????? ?? | | ??????????????????# #??????#?? | | ??????????????????# ?????????? | | ??????????????????? ?????????? | | ???????????????????????????????? | | ???????????????????????????????? | | ???????????????????????????????? | | ???????????????????????????????? | | ???????????????????????????????? | | ???????????????????????????????? | | ???????????????????????????????? | | ???????????????????????????????? | | ???????????????????????????????? | +----------------------------------------------------+ Best States ------------- Heat Dissipation 28 Energy Generation 12 Energy Capacity 265 Matter Stores 500 Matter Capacity 500 Sight Range 18 Terrain Scan Density 10 Armor Coverage 150 Evasion (%) 55 Recoil Reduction 2 Item Schematics ----------------- None Robot Schematics ------------------ None Fabricated ------------ Nothing Repaired ---------- Imp. Ion Engine | 74% | -9/Materials Studied --------- None Alien Tech Used ----------------- None Achievements -------------- Everything Is Under Control Challenges ------------ None Game ------ Seed AutogunArcsightManipulator Manual? 0 Play Time 00:12:38 Cumulative 4.0 hours Start 2026.06.23 @ 17:32:17 End 2026.06.23 @ 17:44:13 Sessions 1 Manual Loads 0 Difficulty Rogue Special Mode None Game No. 11 Rogue 11 Adventurer 0 Explorer 0 Win Type - Total 0 Types 0/0/0/0/0/0/0/0/0/0 Lore% 1 Gallery% 5 Achievement% 6 Wizard Run 0 Options --------- Layout 1 ASCII 0 Keyboard 0 Movement Numpad Keybinds 0 Fullscreen 1 Font 32/SmallcapsGlow Map View 50x35 Zoom Use 0% Tactical HUD 0 Map Filters NONE Filters NONE Steam 1 RUN: 840602da-c8f0-4326-82f0-9fde5ef32590